[Event "Shanghai m"]
[Site "Shanghai"]
[Date "2016.05.05"]
[Round "2"]
[White "So, Wesley"]
[Black "Ding, Liren"]
[Result "1/2-1/2"]
[ECO "C83"]
[WhiteElo "2775"]
[BlackElo "2778"]
[Annotator "CB"]
[PlyCount "61"]
[EventDate "2016.05.04"]
[EventType "match"]
[EventRounds "4"]
[EventCountry "CHN"]
[SourceTitle "CBM 173"]
[Source "ChessBase"]
[SourceDate "2016.07.12"]
[SourceVersion "1"]
[SourceVersionDate "2016.07.12"]
[SourceQuality "1"]
[TimeControl "40/5400+30:1800+30"]

1. e4 e5 2. Nf3 Nc6 3. Bb5 a6 4. Ba4 Nf6 5. O-O Nxe4 {Ding Liren ist neben
Vachier Lagrave der einzige Top Ten Spieler der Welt, der die Berliner Mauer
nicht als Hauptwaffe gegen 1.e4 spielt. Die offene Variante des Spaniers
verwendet er hingegen oft, doch auch So hat hier Erfahrung, spielte er im
Januar in Wijk aan Zee doch zweimal diese alterwürdige Variante.} 6. d4 b5 7.
Bb3 d5 8. dxe5 Be6 9. c3 (9. Nbd2 Nc5 10. c3 Be7 11. Bc2 d4 12. Nb3 d3 {
ist die absolute Hauptvariante. Weiß kann nun zwischen dem soliden 13.Sxc5 mit
sehr leichtem Vorteil im Endspiel wählen oder das ambitioniertere 13.Lb1 mit
unklarer Stellung wählen.} 13. Nxc5 (13. Bb1 Nxb3 14. axb3 Bf5 15. Re1 O-O {
1/2-1/2 (70) Wei Yi (2706)-So,W (2773) Wijk aan Zee NED 2016}) 13... dxc2 14.
Qxd8+ Rxd8 15. Nxe6 fxe6 16. Be3 Rd5 17. Rfc1 Nxe5 18. Nxe5 Rxe5 19. Bd4 Rg5
20. Rxc2 Kf7 21. Be3 Re5 {1/2-1/2 (99) Carlsen,M (2844)-Ding Liren (2766) Wijk
aan Zee NED 2016}) 9... Be7 10. Be3 O-O (10... Nc5 $5 {ist eine schärfere
Alternative} 11. Bc2 Nd7 12. Re1 Ndxe5 13. Nxe5 Nxe5 14. Bd4 Nc6 15. Bxg7 Rg8
16. Bh6 Bc5 17. Qf3 Qh4 $13 {0-1 (65) Acs,P (2525)-Kortschnoj,V (2619) Paks
2005}) 11. Nbd2 Nxd2 {so bekommt Weiß einen leichten Vorteil, doch Ding Liren
zeigt, dass dieser gut zu neutralisieren ist.} (11... Qd7 {wiederum
ambitionierter ist, den Springer auf e4 zu belassen.} 12. Re1 Rad8 13. Bc2 f5
14. exf6 Nxf6 {mit leichtem weißen Vorteil, doch unklarerem Spiel} 15. a4 Ng4
16. axb5 axb5 17. Bd4 Nxd4 18. Nxd4 Qd6 19. N2f3 Bd7 20. h3 Nxf2 21. Kxf2 Bh4+
22. Kg1 Bxe1 23. Qxe1 c5 24. Nb3 Bxh3 25. Ng5 Bf5 26. Bxf5 Rxf5 27. Qe6+ Qxe6
28. Nxe6 Re8 29. Nbxc5 Re5 30. Ra6 Re2 31. b4 Rc2 32. Ra7 Rxc3 33. Rxg7+ Kh8
34. Rd7 Rc4 35. Ng5 Rxb4 36. Nce6 Rh4 37. g3 Rh5 38. Kg2 b4 39. Nf7+ Kg8 40.
Nf4 {1-0 (40) Kasparov,G (2813)-Shirov,A (2726) Izmir 2004 CBM 104 [Postny,E]})
12. Bxd2 $5 $146 {nimmt dem schwarzen Standardmanöver die Pointe, stellt den
Läufer aber auch auf ein unnatürliches Feld} (12. Qxd2 {wurde bisher
ausschließlich gespielt - Schwarz kann hier jedoch forciert fortsetzen und
mittels} Na5 {sein Spiel natürlich voran treiben.} 13. Bc2 (13. Nd4 c5 14. Nxe6
fxe6 15. Bc2 Nc4 16. Qd3 g6 17. Bh6 Rf7 $13 {0-1 (31) Becker,A-Bogoljubow,E
Karlsruhe 1938}) 13... Nc4 14. Qd3 g6 15. Bh6 Nxb2 16. Qe3 Nc4 17. Qf4 f6 (
17... Re8 $146 {furchtlos - Weiß hat Kompensation, aber ob diese ausreicht ist
bezweifelbar}) 18. Bxf8 Qxf8 19. Nd4 $14 {1-0 (47) Psakhis,L (2545)-Zaitsev,I 
(2465) Yerevan 1982}) 12... Qd7 $1 {von Sos Neuerung überrascht findet sich
Ding Liren gut zurecht und wählt einen weiteren logischen Plan, der den
typischen Zentrumsdurchbruch d4 vorbereitet.} (12... Na5 13. Bc2 Nc4 14. Bc1 c5
15. Qe2 {ist die weiße Idee. Die Stellung ist zweischneidig, doch sicherlich
etwas besser für Weiß.}) 13. Re1 Rad8 14. Bg5 $2 (14. Qe2 d4 15. cxd4 Nxd4 16.
Nxd4 Qxd4 17. Ba5 $1 Qa7 $1 {nebst dem entlastenden Manöver Lc5-Lb6 sichert
Ausgleich} 18. Rac1 Bc5) 14... Bg4 15. Bxe7 Qxe7 {ich weiß nicht, wieso der
Us-Amerikaner diese Stellung anstrebte. Sein Bauer e5 teigt zur Schwäche, der
Springer ist unangenehm gefesselt und der Durchbruch d4 liegt in der Luft.} 16.
Bc2 {Diagramm [#]} d4 $6 {strebt das entstehende Schwerfigurenendspiel an, das
kleinen Vorteil sichert.} (16... g6 $1 {hätte die Spannung noch etwas aufrecht
gehalten. Aktuell droh Schwarz den e5 einfach einzustecken.} 17. a4 (17. h3 $6
Bxf3 18. Qxf3 Nxe5 19. Qg3 (19. Qe3 Rfe8 20. f4 Nc6 $17) 19... Rde8 20. f4 Qc5+
$17) 17... d4 $36 (17... Bxf3 18. Qxf3 Nxe5 19. Qe3 Rfe8 20. axb5 axb5 21. f4
Nc6 22. Qxe7 Rxe7 23. Rxe7 Nxe7 24. Ra7 $44)) (16... Bxf3 $6 17. Qxf3 Nxe5 $4
18. Qf5 {[%cal Rf5e5,Rf5h7]}) 17. Qd3 g6 18. Nxd4 Nxd4 19. cxd4 Bf5 20. Qb3
Bxc2 21. Qxc2 Rxd4 {der Rauch ist etwas verzogen und die schwarze Initiative
nicht allzu beträchtlich. So sichert in der Folge problemlos das Remis.} 22.
Qc6 Qe6 23. Qxc7 (23. Qxe6 {auch hier behält Schwarz etwas Druck} fxe6 24. Rad1
Rfd8 25. Rxd4 Rxd4 26. Kf1 c5 (26... Rd2 $6 27. Re2 Rd1+ 28. Re1 Rxe1+ 29. Kxe1
c5 30. Ke2 Kf7 31. Kd3 {bietet Schwarz nur Remischancen}) 27. Rc1 Rd5 28. f4 g5
29. fxg5 Rxe5 $15) 23... Rc8 24. Qa7 Rd2 25. b4 Rcc2 26. h3 {Diagramm [#] die
schwarze Initiative wirkt bedrohlich, doch So hat alles im Griff und kann
mittels des Durchbruchs e6 immer genug Gegenspiel organisieren.} Qf5 (26...
Rxa2 27. Rxa2 Rxa2 28. Qd4 $11) 27. e6 Qxf2+ 28. Qxf2 Rxf2 29. e7 Rxg2+ 30. Kh1
Rh2+ 31. Kg1 1/2-1/2

[Event "Tata Steel-A 79th"]
[Site "Wijk aan Zee"]
[Date "2017.01.15"]
[Round "2"]
[White "Giri, Anish"]
[Black "So, Wesley"]
[Result "1/2-1/2"]
[ECO "D78"]
[WhiteElo "2773"]
[BlackElo "2808"]
[PlyCount "85"]
[EventDate "2017.01.14"]
[EventType "tourn"]
[EventRounds "13"]
[EventCountry "NED"]
[EventCategory "21"]
[SourceTitle "CBM 177"]
[Source "ChessBase"]
[SourceDate "2017.03.16"]
[SourceVersion "1"]
[SourceVersionDate "2017.03.16"]
[SourceQuality "1"]
[TimeControl "40/6000+30:20/3000+30:900+30"]

1. Nf3 {[%emt 0:00:00]} d5 {[%emt 0:00:17]} 2. g3 {[%emt 0:00:00]} g6 {[%emt 0:
01:59]} 3. Bg2 {[%emt 0:00:00]} Bg7 {[%emt 0:00:05]} 4. d4 {[%emt 0:00:00]} Nf6
{[%emt 0:00:07]} 5. O-O {[%emt 0:00:00]} O-O {[%emt 0:00:05]} 6. c4 {[%emt 0:
00:00]} c6 {[%emt 0:02:31]} 7. Qb3 {[%emt 0:00:25]} Qb6 {[%emt 0:04:36]} 8. Nc3
{[%emt 0:00:14]} Rd8 {[%emt 0:00:06]} 9. Bd2 {[%emt 0:00:10]} Be6 $146 {
[%emt 0:09:30]} (9... Bf5 10. Na4 Qxb3 11. axb3 Nbd7 12. Rfc1 Be4 13. Be1 Ne8
14. e3 Nd6 15. Bb4 a5 16. Be1 e6 17. Ra2 b5 18. cxb5 cxb5 19. Nc5 Nxc5 20. dxc5
Rdc8 21. Bd2 Nf5 22. Bxa5 b4 23. c6 Ne7 24. c7 Bf6 25. Rca1 Ra7 26. Nd4 Bxd4
27. exd4 Bxg2 28. Kxg2 Rb7 29. Rc1 Nf5 30. Ra4 Kf8 31. Rxb4 Rxb4 32. Bxb4+ Ke8
33. Bc5 Rxc7 34. Ra1 Kd7 35. b4 Nd6 36. b3 f6 37. Ra6 Rc6 38. Ra7+ Rc7 39. Ra6
{Chandra,A (2464)-Zierk,S (2488) Saint Louis 2016 1/2-1/2 (76)}) 10. Na4 {
[%emt 0:00:40]} Qxb3 {[%emt 0:08:15]} 11. axb3 {[%emt 0:00:25]} Nbd7 {[%emt 0:
00:06]} 12. Rfc1 {[%emt 0:00:37]} Ne4 {[%emt 0:02:02]} 13. Ba5 {[%emt 0:09:28]}
b6 {[%emt 0:17:39]} 14. Be1 {[%emt 0:04:48]} Rac8 {[%emt 0:01:35]} 15. cxd5 {
[%emt 0:19:13]} Bxd5 {[%emt 0:05:28]} 16. b4 {[%emt 0:01:46]} e5 {[%emt 0:15:
31]} 17. Nxe5 {[%emt 0:04:36]} Nxe5 {[%emt 0:00:16]} 18. dxe5 {[%emt 0:00:07]}
Bxe5 {[%emt 0:00:06]} 19. Bxe4 {[%emt 0:07:31]} Bxe4 {[%emt 0:00:05]} 20. Nc3 {
[%emt 0:00:07]} Bd5 {[%emt 0:10:27]} 21. Rxa7 {[%emt 0:01:06]} Bc4 {[%emt 0:02:
33]} 22. Na4 {[%emt 0:20:57]} Bxe2 {[%emt 0:00:17]} 23. Nxb6 {[%emt 0:06:35]}
Rc7 {[%emt 0:00:27]} 24. Ra2 {[%emt 0:02:53]} Bd4 {[%emt 0:05:34]} 25. Na4 {
[%emt 0:04:03]} Ra7 {[%emt 0:07:23]} 26. b3 {[%emt 0:08:49]} Bb5 {[%emt 0:00:
11]} 27. Rd2 {[%emt 0:02:20]} Rad7 {[%emt 0:05:15]} 28. Rcd1 {[%emt 0:00:41]}
Rd6 {[%emt 0:03:37]} 29. Kg2 {[%emt 0:00:54]} Be5 {[%emt 0:00:39]} 30. Rxd6 {
[%emt 0:01:10]} Rxd6 {[%emt 0:00:06]} 31. Rc1 {[%emt 0:01:41]} Rd8 {[%emt 0:02:
01]} 32. Nc5 {[%emt 0:01:25]} Bb2 {[%emt 0:02:14]} 33. Rc2 {[%emt 0:01:42]} Bd4
{[%emt 0:01:23]} 34. Bd2 {[%emt 0:01:33]} Bxc5 {[%emt 0:01:12]} 35. bxc5 {
[%emt 0:00:21]} f6 {[%emt 0:00:01]} 36. h4 {[%emt 0:04:23]} Rd3 {[%emt 0:00:35]
} 37. Rb2 {[%emt 0:00:54]} Kf7 {[%emt 0:00:40]} 38. g4 {[%emt 0:00:28]} h5 {
[%emt 0:00:21]} 39. gxh5 {[%emt 0:02:24]} gxh5 {[%emt 0:00:04]} 40. Be3 {
[%emt 0:00:00]} Kg6 {[%emt 0:01:12]} 41. Rb1 {[%emt 0:02:15]} Rc3 {[%emt 0:01:
15]} 42. b4 {[%emt 0:00:29]} Rc4 {[%emt 0:00:10]} 43. Kh3 {[%emt 0:00:34]}
1/2-1/2

[Event "Tata Steel-A 79th"]
[Site "Wijk aan Zee"]
[Date "2017.01.17"]
[Round "4"]
[White "Van Wely, Loek"]
[Black "So, Wesley"]
[Result "0-1"]
[ECO "A11"]
[WhiteElo "2695"]
[BlackElo "2808"]
[PlyCount "86"]
[EventDate "2017.01.14"]
[EventType "tourn"]
[EventRounds "13"]
[EventCountry "NED"]
[EventCategory "21"]
[SourceTitle "CBM 177"]
[Source "ChessBase"]
[SourceDate "2017.03.16"]
[SourceVersion "1"]
[SourceVersionDate "2017.03.16"]
[SourceQuality "1"]
[TimeControl "40/6000+30:20/3000+30:900+30"]

1. Nf3 {[%emt 0:00:00]} d5 {[%emt 0:00:19]} 2. g3 {[%emt 0:00:00]} Bg4 {
[%emt 0:00:54]} 3. Bg2 {[%emt 0:00:00]} c6 {[%emt 0:00:04]} 4. c4 {[%emt 0:02:
52]} e6 {[%emt 0:00:23]} 5. O-O {[%emt 0:00:41]} Nf6 {[%emt 0:02:14]} 6. d3 {
[%emt 0:01:15]} Bd6 {[%emt 0:11:15]} 7. Nc3 {[%emt 0:11:02]} O-O {[%emt 0:13:
23]} 8. Qb3 {[%emt 0:05:44]} Qb6 {[%emt 0:00:12]} 9. cxd5 $146 {[%emt 0:09:33]}
(9. Be3 Qxb3 10. axb3 a6 11. Nd2 Nbd7 12. h3 Bf5 13. g4 Bg6 14. f4 h6 15. Ra4 {
1/2-1/2 (15) Gonda,L (2563)-Varga,Z (2464) Balatonboglar 2014}) 9... Qxb3 {
[%emt 0:03:47]} 10. axb3 {[%emt 0:00:15]} exd5 {[%emt 0:01:41]} 11. Be3 {
[%emt 0:06:52]} a6 {[%emt 0:08:36]} 12. h3 {[%emt 0:02:13]} Bxf3 {[%emt 0:03:
08]} 13. Bxf3 {[%emt 0:00:09]} Nbd7 {[%emt 0:00:04]} 14. d4 {[%emt 0:10:58]}
Rfe8 {[%emt 0:05:42]} 15. Kg2 {[%emt 0:03:41]} g6 {[%emt 0:06:47]} 16. Bh6 {
[%emt 0:02:46]} Ne4 {[%emt 0:06:26]} 17. Rad1 {[%emt 0:04:54]} f5 {[%emt 0:02:
13]} 18. h4 {[%emt 0:02:20]} Ndf6 {[%emt 0:06:17]} 19. e3 {[%emt 0:09:45]} a5 {
[%emt 0:10:59]} 20. Rh1 {[%emt 0:07:44]} Ra6 {[%emt 0:06:17]} 21. Ra1 {[%emt 0:
09:22]} Rea8 {[%emt 0:00:17]} 22. Nxe4 {[%emt 0:12:01]} Nxe4 {[%emt 0:00:05]}
23. Bxe4 {[%emt 0:04:34]} dxe4 {[%emt 0:09:33]} 24. d5 {[%emt 0:01:05]} c5 {
[%emt 0:00:59]} 25. h5 {[%emt 0:00:27]} Rb6 {[%emt 0:01:35]} 26. hxg6 {[%emt 0:
00:11]} hxg6 {[%emt 0:00:03]} 27. Bg5 {[%emt 0:01:00]} Be5 {[%emt 0:01:47]} 28.
Rad1 {[%emt 0:00:02]} Rxb3 {[%emt 0:01:48]} 29. d6 {[%emt 0:00:44]} Rd3 {
[%emt 0:00:04]} 30. d7 {[%emt 0:00:17]} Bc7 {[%emt 0:00:32]} 31. b3 {[%emt 0:
01:10]} b5 {[%emt 0:00:55]} 32. Be7 {[%emt 0:00:20]} c4 {[%emt 0:01:34]} 33.
bxc4 {[%emt 0:00:12]} bxc4 {[%emt 0:00:01]} 34. Rc1 {[%emt 0:01:18]} Rxd7 {
[%emt 0:00:34]} 35. Ba3 {[%emt 0:00:52]} Be5 {[%emt 0:02:30]} 36. Rxc4 {
[%emt 0:00:10]} a4 {[%emt 0:00:15]} 37. Rc6 {[%emt 0:00:54]} Rd3 {[%emt 0:01:
33]} 38. Bc5 {[%emt 0:00:44]} a3 {[%emt 0:00:50]} 39. Rxg6+ {[%emt 0:00:28]}
Kf7 {[%emt 0:00:04]} 40. Rg5 {[%emt 0:00:00]} a2 {[%emt 0:01:49]} 41. Rxf5+ {
[%emt 0:11:44]} Ke6 {[%emt 0:02:29]} 42. Rxe5+ {[%emt 0:01:47]} Kxe5 {[%emt 0:
02:31]} 43. Bd4+ {[%emt 0:00:05]} Rxd4 {[%emt 0:03:02]} 0-1

[Event "Tata Steel-A 79th"]
[Site "Wijk aan Zee"]
[Date "2017.01.22"]
[Round "8"]
[White "Karjakin, Sergey"]
[Black "So, Wesley"]
[Result "1/2-1/2"]
[ECO "A13"]
[WhiteElo "2785"]
[BlackElo "2808"]
[PlyCount "44"]
[EventDate "2017.01.14"]
[EventType "tourn"]
[EventRounds "13"]
[EventCountry "NED"]
[EventCategory "21"]
[SourceTitle "CBM 177"]
[Source "ChessBase"]
[SourceDate "2017.03.16"]
[SourceVersion "1"]
[SourceVersionDate "2017.03.16"]
[SourceQuality "1"]
[TimeControl "40/6000+30:20/3000+30:900+30"]

1. Nf3 {[%emt 0:00:00]} d5 {[%emt 0:00:24]} 2. e3 {[%emt 0:00:00]} Nf6 {
[%emt 0:00:59]} 3. c4 {[%emt 0:00:00]} e6 {[%emt 0:01:33]} 4. b3 {[%emt 0:00:
03]} b6 {[%emt 0:00:05]} 5. Bb2 {[%emt 0:01:31]} Bb7 {[%emt 0:00:12]} 6. Nc3 {
[%emt 0:02:16]} (6. cxd5 exd5 7. Nc3 Nbd7 8. d4 a6 9. Bd3 Bd6 10. O-O O-O 11.
Rc1 Ne4 12. Rc2 Qe7 13. Qc1 Ndf6 14. Ne2 c5 15. Ng3 Nxg3 16. hxg3 Ne4 17. dxc5
bxc5 18. Bxe4 dxe4 19. Nd2 Rad8 20. Nc4 Bc7 21. Ba3 Rd5 22. Nb2 Bd6 23. Rd1 Rh5
24. Nc4 Bc7 25. Nd2 Bd6 26. Nc4 Bc7 27. Nb2 Bd6 28. Qd2 Rh6 29. Qe2 Rc8 30.
Rcd2 a5 31. Nc4 Ba6 32. Qg4 Rg6 33. Nxd6 {1-0 (33) Karjakin,S (2785)-Fressinet,
L (2672) Doha 2016}) 6... a6 {[%emt 0:05:44]} 7. cxd5 {[%emt 0:06:07]} exd5 {
[%emt 0:01:18]} 8. d4 {[%emt 0:00:22]} Bd6 {[%emt 0:01:08]} 9. g3 {[%emt 0:00:
33]} O-O {[%emt 0:05:10]} 10. Bg2 {[%emt 0:00:34]} Nbd7 {[%emt 0:00:11]} 11.
O-O {[%emt 0:00:09]} Qe7 $146 {[%emt 0:00:04]} (11... Re8 12. Rc1 Ne4 13. Rc2
Ndf6 14. Qc1 Ng4 15. Ba3 Rc8 16. Na4 a5 17. h3 Ngf6 18. Rd1 Bb4 19. Ne5 c5 20.
Bb2 c4 21. bxc4 dxc4 22. Nxc4 b5 23. Nc5 bxc4 24. Nxb7 Qe7 25. Nc5 c3 26. Ba1
Bxc5 27. dxc5 Qxc5 28. Rd4 Rc7 29. Kh2 Qf5 30. g4 Qe5+ 31. f4 Qb5 32. g5 Nxg5
33. fxg5 Qxg5 34. Rxc3 Rce7 35. Rc5 Qh6 36. Rc8 Rxe3 37. Rxe8+ Nxe8 38. Re4
Rxe4 39. Qxh6 gxh6 40. Bxe4 Nd6 41. Bd3 {Salem,A (2608)-Osmanodja,F (2318)
Warsaw 2016 1-0}) 12. a4 {[%emt 0:12:13]} Ne4 {[%emt 0:11:03]} 13. Ne2 {
[%emt 0:07:06]} a5 {[%emt 0:09:23]} 14. Nf4 {[%emt 0:01:20]} Rac8 {[%emt 0:00:
56]} 15. Re1 {[%emt 0:11:28]} Bb4 {[%emt 0:09:47]} 16. Re2 {[%emt 0:00:45]} Nc3
{[%emt 0:00:10]} 17. Bxc3 {[%emt 0:00:08]} Bxc3 {[%emt 0:00:03]} 18. Rc1 {
[%emt 0:00:06]} Bb4 {[%emt 0:00:03]} 19. Rec2 {[%emt 0:02:46]} c6 {[%emt 0:12:
13]} 20. Nd3 {[%emt 0:04:41]} Bd6 {[%emt 0:01:04]} 21. Qd2 {[%emt 0:04:15]} g6
{[%emt 0:03:17]} 22. Qc3 {[%emt 0:03:25]} Rfe8 1/2-1/2

[Event "Tata Steel-A 79th"]
[Site "Wijk aan Zee"]
[Date "2017.01.24"]
[Round "9"]
[White "So, Wesley"]
[Black "Aronian, Levon"]
[Result "1/2-1/2"]
[ECO "D39"]
[WhiteElo "2808"]
[BlackElo "2780"]
[PlyCount "76"]
[EventDate "2017.01.14"]
[EventType "tourn"]
[EventRounds "13"]
[EventCountry "NED"]
[EventCategory "21"]
[SourceTitle "CBM 177"]
[Source "ChessBase"]
[SourceDate "2017.03.16"]
[SourceVersion "1"]
[SourceVersionDate "2017.03.16"]
[SourceQuality "1"]
[TimeControl "40/6000+30:20/3000+30:900+30"]

1. Nf3 {[%emt 0:00:00]} d5 {[%emt 0:00:09]} 2. d4 {[%emt 0:00:00]} Nf6 {
[%emt 0:00:07]} 3. c4 {[%emt 0:00:00]} e6 {[%emt 0:00:10]} 4. Nc3 {[%emt 0:00:
00]} Bb4 {[%emt 0:00:05]} 5. Bg5 {[%emt 0:02:30]} dxc4 {[%emt 0:00:07]} 6. e4 {
[%emt 0:01:58]} c5 {[%emt 0:00:05]} 7. Bxc4 {[%emt 0:03:50]} cxd4 {[%emt 0:00:
15]} 8. Nxd4 {[%emt 0:00:08]} Bxc3+ {[%emt 0:00:06]} 9. bxc3 {[%emt 0:00:05]}
Qa5 {[%emt 0:00:06]} 10. Bb5+ {[%emt 0:00:22]} Nbd7 {[%emt 0:00:07]} 11. Bxf6 {
[%emt 0:07:20]} Qxc3+ {[%emt 0:00:20]} 12. Kf1 {[%emt 0:00:08]} gxf6 {[%emt 0:
00:05]} 13. h4 {[%emt 0:15:34]} Qb4 {[%emt 0:00:05]} 14. Rh3 {[%emt 0:08:38]}
a6 {[%emt 0:00:21]} 15. Be2 {[%emt 0:02:51]} Ne5 {[%emt 0:00:05]} 16. Rb1 {
[%emt 0:08:02]} Qd6 {[%emt 0:00:32]} 17. Qd2 {[%emt 0:06:53]} Bd7 {[%emt 0:03:
15]} 18. Rxb7 {[%emt 0:03:42]} Bb5 {[%emt 0:04:58]} 19. Rc3 $146 {[%emt 0:06:
50]} (19. Rb3 Rc8 20. Bxb5+ axb5 21. Qb4 Qxb4 22. Rxb4 O-O 23. R7xb5 Rfd8 24.
Ke2 Kg7 25. Ra4 Ra8 26. Rbb4 Rdb8 27. Nb3 Rxb4 28. Rxb4 Rxa2+ 29. Nd2 Kg6 30.
g3 h5 31. Rd4 f5 32. exf5+ Kxf5 33. Rf4+ Kg6 34. Rd4 Kf5 35. Rf4+ Kg6 36. Rd4 {
1/2-1/2 (36) Giri,A (2773)-Aronian,L (2780) Stavanger 2015}) 19... Rd8 {
[%emt 0:08:40]} 20. Nf3 {[%emt 0:10:03]} Qxd2 {[%emt 0:03:58]} 21. Bxb5+ {
[%emt 0:00:07]} axb5 {[%emt 0:01:33]} 22. Nxd2 {[%emt 0:00:08]} O-O {[%emt 0:
00:12]} 23. Nf3 {[%emt 0:03:54]} Nxf3 {[%emt 0:00:49]} 24. Rxf3 {[%emt 0:00:30]
} Rb8 {[%emt 0:00:30]} 25. Rg3+ {[%emt 0:06:41]} Kh8 {[%emt 0:00:39]} 26. Rxb8
{[%emt 0:03:21]} Rxb8 {[%emt 0:01:06]} 27. Rb3 {[%emt 0:00:03]} Ra8 {[%emt 0:
06:22]} 28. Rxb5 {[%emt 0:01:50]} Rxa2 {[%emt 0:00:17]} 29. Rb4 {[%emt 0:00:05]
} Kg7 {[%emt 0:00:09]} 30. g3 {[%emt 0:00:04]} Ra5 {[%emt 0:00:12]} 31. Kg2 {
[%emt 0:00:06]} f5 {[%emt 0:00:05]} 32. exf5 {[%emt 0:00:03]} Rxf5 {[%emt 0:00:
06]} 33. g4 {[%emt 0:00:04]} Ra5 {[%emt 0:00:16]} 34. Kg3 {[%emt 0:00:09]} h6 {
[%emt 0:00:18]} 35. Rc4 {[%emt 0:00:04]} Rb5 {[%emt 0:00:24]} 36. Rd4 {[%emt 0:
00:04]} Ra5 {[%emt 0:00:06]} 37. Rc4 {[%emt 0:00:02]} Rb5 {[%emt 0:00:04]} 38.
Rd4 {[%emt 0:00:04]} Ra5 {[%emt 0:00:06]} 1/2-1/2

[Event "Tata Steel-A 79th"]
[Site "Wijk aan Zee"]
[Date "2017.01.27"]
[Round "11"]
[White "Andreikin, Dmitry"]
[Black "So, Wesley"]
[Result "1/2-1/2"]
[ECO "C67"]
[WhiteElo "2736"]
[BlackElo "2808"]
[PlyCount "49"]
[EventDate "2017.01.14"]
[EventType "tourn"]
[EventRounds "13"]
[EventCountry "NED"]
[EventCategory "21"]
[SourceTitle "CBM 177"]
[Source "ChessBase"]
[SourceDate "2017.03.16"]
[SourceVersion "1"]
[SourceVersionDate "2017.03.16"]
[SourceQuality "1"]
[TimeControl "40/6000+30:20/3000+30:900+30"]

1. e4 {[%emt 0:00:07]} e5 {[%emt 0:00:18]} 2. Nf3 {[%emt 0:00:32]} Nc6 {
[%emt 0:00:07]} 3. Bb5 {[%emt 0:00:10]} Nf6 {[%emt 0:00:15]} 4. O-O {[%emt 0:
00:23]} Nxe4 {[%emt 0:00:22]} 5. Re1 {[%emt 0:00:16]} Nd6 {[%emt 0:01:46]} 6.
Nxe5 {[%emt 0:02:06]} Be7 {[%emt 0:00:06]} 7. Bf1 {[%emt 0:00:15]} Nxe5 {
[%emt 0:01:19]} 8. Rxe5 {[%emt 0:00:09]} O-O {[%emt 0:00:05]} 9. d4 {[%emt 0:
00:13]} Bf6 {[%emt 0:00:45]} 10. Re1 {[%emt 0:00:07]} Re8 {[%emt 0:00:12]} 11.
Bf4 {[%emt 0:00:09]} Rxe1 {[%emt 0:00:33]} 12. Qxe1 {[%emt 0:00:07]} Ne8 {
[%emt 0:00:16]} 13. c3 {[%emt 0:00:08]} d5 {[%emt 0:01:07]} 14. Bd3 {[%emt 0:
00:06]} g6 {[%emt 0:04:23]} 15. Nd2 {[%emt 0:00:27]} Ng7 {[%emt 0:00:09]} 16.
Qe2 {[%emt 0:06:06]} c6 {[%emt 0:03:38]} 17. Re1 {[%emt 0:00:15]} Bf5 {[%emt 0:
01:26]} 18. Bxf5 {[%emt 0:00:24]} Nxf5 {[%emt 0:00:07]} 19. Nf3 {[%emt 0:00:11]
} Ng7 {[%emt 0:04:25]} 20. Be5 {[%emt 0:10:18]} Bxe5 {[%emt 0:00:25]} 21. Nxe5
{[%emt 0:03:02]} Qd6 {[%emt 0:04:21]} 22. Qf3 {[%emt 0:00:29]} f6 {[%emt 0:01:
35]} 23. Nd3 {[%emt 0:01:52]} Re8 {[%emt 0:00:20]} 24. Rxe8+ {[%emt 0:00:10]}
Nxe8 {[%emt 0:00:03]} 25. h4 {[%emt 0:00:08]} 1/2-1/2

[Event "Tata Steel-A 79th"]
[Site "Wijk aan Zee"]
[Date "2017.01.28"]
[Round "12"]
[White "So, Wesley"]
[Black "Wei, Yi"]
[Result "1/2-1/2"]
[ECO "D41"]
[WhiteElo "2808"]
[BlackElo "2706"]
[PlyCount "63"]
[EventDate "2017.01.14"]
[EventType "tourn"]
[EventRounds "13"]
[EventCountry "NED"]
[EventCategory "21"]
[SourceTitle "CBM 177"]
[Source "ChessBase"]
[SourceDate "2017.03.16"]
[SourceVersion "1"]
[SourceVersionDate "2017.03.16"]
[SourceQuality "1"]
[TimeControl "40/6000+30:20/3000+30:900+30"]

1. Nf3 {[%emt 0:00:00]} d5 {[%emt 0:00:08]} 2. d4 {[%emt 0:00:05]} Nf6 {
[%emt 0:00:07]} 3. c4 {[%emt 0:00:05]} e6 {[%emt 0:00:04]} 4. Nc3 {[%emt 0:00:
08]} c5 {[%emt 0:00:17]} 5. cxd5 {[%emt 0:00:33]} cxd4 {[%emt 0:00:27]} 6. Qxd4
{[%emt 0:00:32]} exd5 {[%emt 0:00:06]} 7. e4 {[%emt 0:00:14]} Nc6 {[%emt 0:00:
06]} 8. Bb5 {[%emt 0:00:10]} dxe4 {[%emt 0:00:09]} 9. Qxd8+ {[%emt 0:05:40]}
Kxd8 {[%emt 0:00:05]} 10. Ng5 {[%emt 0:00:05]} Be6 {[%emt 0:00:07]} 11. Bxc6 {
[%emt 0:00:04]} (11. O-O Bb4 12. Ncxe4 Nxe4 13. Nxe4 Ke7 14. Be3 Rhd8 15. Bxc6
bxc6 16. Rfc1 Bd5 17. Bc5+ Bxc5 18. Nxc5 Rab8 19. Rc2 Bxa2 20. h3 Be6 21. Rxa7+
Kf6 22. Nxe6 fxe6 23. Rxc6 Rxb2 24. Rcc7 Rg8 25. h4 Rb5 26. g3 Kg6 27. Ra6 Kf6
28. Kg2 Rbb8 29. g4 Rbc8 30. g5+ Kf5 31. Re7 Rce8 32. Rea7 Kg4 33. Ra4+ Kh5 34.
Kg3 Ref8 35. Re7 Rf5 36. Rxe6 Rgf8 37. f4 Rb5 38. Ra3 Rb1 39. Re7 Rg1+ 40. Kh2
Rg4 {Mamedyarov,S (2768)-Wei,Y (2707) Doha 2016 1/2-1/2}) 11... bxc6 {[%emt 0:
00:06]} 12. Nxe6+ {[%emt 0:00:05]} fxe6 {[%emt 0:00:04]} 13. Ke2 {[%emt 0:00:
07]} Bb4 {[%emt 0:03:03]} 14. Na4 {[%emt 0:03:27]} Kc7 {[%emt 0:00:37]} 15.
Bf4+ $146 {[%emt 0:16:15]} (15. Rd1 Rhd8 16. Bf4+ Kb7 17. Rac1 a5 18. Rxd8 Rxd8
19. Rc4 Rd5 20. Be3 Rb5 21. h3 Kc7 22. b3 Rd5 23. Bf4+ Kb7 24. Bg3 {1/2-1/2 
(24) Lysyj,I (2691)-Wang,Y (2726) China 2015}) 15... Bd6 {[%emt 0:00:13]} 16.
Be3 {[%emt 0:02:58]} Nd5 {[%emt 0:45:49]} 17. Rac1 {[%emt 0:03:17]} Rhf8 {
[%emt 0:03:48]} 18. Nc5 {[%emt 0:14:34]} Bxc5 {[%emt 0:02:14]} 19. Rxc5 {
[%emt 0:00:14]} Nf4+ {[%emt 0:07:04]} 20. Bxf4+ {[%emt 0:11:18]} Rxf4 {[%emt 0:
00:03]} 21. Ke3 {[%emt 0:07:33]} Raf8 {[%emt 0:00:24]} 22. Rc2 {[%emt 0:00:06]}
Rg4 {[%emt 0:01:06]} 23. g3 {[%emt 0:00:17]} Rf3+ {[%emt 0:02:46]} 24. Ke2 {
[%emt 0:00:52]} Rg6 {[%emt 0:00:40]} 25. Rhc1 {[%emt 0:01:39]} Rgf6 {[%emt 0:
02:08]} 26. Rxc6+ {[%emt 0:00:06]} Kd7 {[%emt 0:00:48]} 27. Rc7+ {[%emt 0:06:
45]} Kd6 {[%emt 0:00:06]} 28. R1c6+ {[%emt 0:00:38]} Kd5 {[%emt 0:00:06]} 29.
Rc5+ {[%emt 0:00:11]} Kd6 {[%emt 0:00:17]} 30. R7c6+ {[%emt 0:00:04]} Kd7 {
[%emt 0:00:04]} 31. Rc7+ {[%emt 0:00:02]} Kd6 {[%emt 0:00:05]} 32. R7c6+ {
[%emt 0:00:04]} 1/2-1/2